Workbook

Sheet 용역 원가계산서
A1: 용역비 원가계산서
A4: □ 용역명 : 경기도시공사 융복합센터(신사옥, 복합시설관) 계획 및 중간설계 용역
A5: 구 분 | B5: 설계금액 | C5: 산출기준 | D5: 비고
A7: □ 신사옥 | B7: =B8+B9 -> 2068486238
A8: 1. 계획 및 중간설계비 | B8: ='1. 신사옥_직선보간법(설계용역비 산출)'!O25 -> 1604245000 | C8: 3.904% * 60%(계획 및 중간설계)
A9: 2. 추가업무비용 | B9: ='2. 신사옥_추가업무비용'!I20 -> 464241237.5
A10: □ 복합시설관 | B10: =B11+B12 -> 844375135
A11: 1. 계획 및 중간설계비 | B11: ='3. 복합시설관_직선보간법(설계용역비 산출)'!O25 -> 630754000 | C11: 4.025% * 60%(계획 및 중간설계)
A12: 2. 추가업무비용 | B12: ='4. 복합시설관_추가업무비용'!I19 -> 213621135
A14: □ 공 급 가 액 | B14: =B10+B7 -> 2912861372
A15: □ 부 가 세 | B15: =B14*0.1 -> 291286137.2
A17: □ 공 급 가 액 + 부 가 세 | B17: =B14+B15 -> 3204147510
A19: 설계용역비 | B19: =ROUNDDOWN(B17,-6) -> 3204000000 | C19: 백만원 미만절사
A21: ※ 본 용역의 과업범위는 기본설계 용역(계획 및 중간설계)으로 건설기술진흥법 시행령 제50조 2항 2호에 의거 손해배상공제보험 가입대상이 아님

Sheet 1. 신사옥_직선보간법(설계용역비 산출)
A1: 설계비 산출내역(직선보간법)
A3: □ 추정공사비
A5: ○ 추정가격(부가가치세 제외) :
A6: - 신사옥 | G6: 75336000000 | I6: ÷ | J6: 1.1 | K6: = | L6: =TRUNC(G6/J6,-3) -> 68487272000 | P6: 원
A8: - 신사옥 === > 설계비 요율 : 직선보간법(2종 보통 상급 적용)
F9: ( | G9: x | I9: - | J9: x2 | L9: ) * | M9: ( | N9: y1 | O9: - | P9: y2 | Q9: )
B10: y | C10: = | D10: y1 | E10: - | F10: -------------------------------------------------------------------------------------------------------------------------------------------
J11: x1 | L11: - | M11: x2
B13: ※ | C13: y : | D13: 기본 및 실시설계요율 | J13: y1 : | K13: 작은금액요율 : | M13: 3.93
C14: x : | D14: 당 해 금 액 : | G14: =L6 -> 68487272000 | J14: y2 : | K14: 큰 금 액 요 율 : | M14: 3.86
C15: x1 : | D15: 큰 금 액 : | G15: 100000000000 | J15: x2 : | K15: 작 은 금 액 : | M15: 50000000000
F17: ( | G17: =G14 -> 68487272000 | I17: - | J17: =M15 -> 50000000000 | L17: ) * | M17: ( | N17: =M13 -> 3.93 | O17: - | P17: =M14 -> 3.86 | Q17: )
B18: =TRUNC(D18-(((G17-J17)*(N17-P17)/(H19-L19))),3) -> 3.904 | C18: = | D18: =M13 -> 3.93 | E18: - | F18: -------------------------------------------------------------------------------------------------------------------------------------------
B19: (적용요율) | H19: =G15 -> 100000000000 | K19: - | L19: =M15 -> 50000000000
A22: □ 설계금액
A23: ○ 설계금액 = 추정가격(부가가치세 제외) x 설계요율 x 업무비율
A24: <계획 및 중간 설계>
A25: 신사옥 | D25: =L6 -> 68487272000 | G25: (원) × | H25: =B18 -> 3.904 | J25: (%) | K25: × | L25: 0.6 | M25: = | O25: =TRUNC(D25*H25/100*L25,-3) -> 1604245000 | P25: 원
M27: 기본 및 실시설계 용역 비용산정 | O27: =D25*4.686% -> 3209313566

Sheet 2. 신사옥_추가업무비용
A1: □ 각종 인증에 따른 추가업무비용
M2: 단위 : 원
B3: 구 분 | E3: 계 획 | G3: 업무대가 | I3: 적용률 | K3: 추가업무비용 | M3: 비 고
B4: 1. 녹색건축물물 인증 | E4: 우수등급 | G4: 0.09 | I4: =G4+G5/2 -> 0.1275 | K4: =I4*'1. 신사옥_직선보간법(설계용역비 산출)'!O25 -> 204541237.5
B5: 2. 에너지효율등급 인증 | E5: 1등급 | G5: 0.075
B7: * 추가설계대가 요율 = A + 1/2 B = 9.0 + 7.5/2 = 12.75% A : 친환경건축물, 지능형건축물, 에너지효율등급 인증관련 설계 추가요율 중 최상위값 = 9.0% B : 친환경건축물, 지능형건축물, 에너지효율등급 인증관련 설계 추가요율 중 차상위값 = 7.5%
B9: 3. 지열시험천공 | D9: : | E9: 20000000 | G9: 원 | H9: (견적가, VAT제외)
B10: 4. 지반조사 | D10: : | E10: 27700000 | G10: 원 | H10: (견적가, VAT제외)
B11: 5. 설계안전성검토 | D11: : | E11: 10000000 | G11: 원 | H11: (견적가, VAT제외)
B12: 6.에너지절약계획서 | D12: : | E12: 6000000 | G12: 원 | H12: (견적가, VAT제외)
B13: 7. BF 인증 | D13: : | E13: 10000000 | G13: 원 | H13: (견적가, VAT제외)
B14: 8. 성능위주설계 | D14: : | E14: 45000000 | G14: 원 | H14: (견적가, VAT제외)
B15: 9. 사전재난영향성 검토 | D15: : | E15: 90000000 | G15: 원 | H15: (복합시설관 통합, 견적가, VAT제외)
B16: 10. 조감토 투시도 CG | D16: : | E16: 9000000 | G16: 원 | H16: (견적가, VAT제외)
B17: 11. 모형제작 | E17: 12000000 | G17: 원 | H17: (견적가, VAT제외)
B18: 12. 입찰안내서 작성 | D18: : | E18: 30000000 | G18: 원 | H18: (복합시설관 통합, 견적가, VAT제외)
B20: ※ 추가 업무비용 | I20: =K4+E12+E13+E14+E16+E17+E18+E9+E10+E11+E15 -> 464241237.5 | J20: 원
I24: =E9+E10+E11+E12+E13+E14+E16+E17+E18 -> 169700000

Sheet 3. 복합시설관_직선보간법(설계용역비 산출)
A1: 설계비 산출내역(직선보간법)
A3: □ 추정공사비
A5: ○ 추정가격(부가가치세 제외) :
A6: - 복합시설관 | G6: 28730000000 | I6: ÷ | J6: 1.1 | K6: = | L6: =TRUNC(G6/J6,-3) -> 26118181000 | P6: 원
A8: - 복합시설관 === > 설계비 요율 : 직선보간법(2종 보통 상급 적용)
F9: ( | G9: x | I9: - | J9: x2 | L9: ) * | M9: ( | N9: y1 | O9: - | P9: y2 | Q9: )
B10: y | C10: = | D10: y1 | E10: - | F10: -------------------------------------------------------------------------------------------------------------------------------------------
J11: x1 | L11: - | M11: x2
B13: ※ | C13: y : | D13: 기본 및 실시설계요율 | J13: y1 : | K13: 작은금액요율 : | M13: 4.01
C14: x : | D14: 당 해 금 액 : | G14: =L6 -> 26118181000 | J14: y2 : | K14: 큰 금 액 요 율 : | M14: 3.93
C15: x1 : | D15: 큰 금 액 : | G15: 50000000000 | J15: x2 : | K15: 작 은 금 액 : | M15: 30000000000
F17: ( | G17: =G14 -> 26118181000 | I17: - | J17: =M15 -> 30000000000 | L17: ) * | M17: ( | N17: =M13 -> 4.01 | O17: - | P17: =M14 -> 3.93 | Q17: )
B18: =TRUNC(D18-(((G17-J17)*(N17-P17)/(H19-L19))),3) -> 4.025 | C18: = | D18: =M13 -> 4.01 | E18: - | F18: -------------------------------------------------------------------------------------------------------------------------------------------
B19: (적용요율) | H19: =G15 -> 50000000000 | K19: - | L19: =M15 -> 30000000000
A22: □ 설계금액
A23: ○ 설계금액 = 추정가격(부가가치세 제외) x 설계요율 x 업무비율
A24: <계획 및 중간 설계>
A25: 복합시설관 | D25: =L6 -> 26118181000 | G25: (원) × | H25: =B18 -> 4.025 | J25: (%) | K25: × | L25: 0.6 | M25: = | O25: =TRUNC(D25*H25/100*L25,-3) -> 630754000 | P25: 원
M27: 기본 및 실시설계용역 비용산정 | O27: =D25*4.826% -> 1260463415

Sheet 4. 복합시설관_추가업무비용
A1: □ 각종 인증에 따른 추가업무비용
M2: 단위 : 원
B3: 구 분 | E3: 계 획 | G3: 업무대가 | I3: 적용률 | K3: 추가업무비용 | M3: 비 고
B4: 1. 녹색건축물물 인증 | E4: 우수등급 | G4: 0.09 | I4: =G4+G5/2 -> 0.1275 | K4: =I4*'3. 복합시설관_직선보간법(설계용역비 산출)'!O25 -> 80421135
B5: 2. 에너지효율등급 인증 | E5: 1등급 | G5: 0.075
B7: * 추가설계대가 요율 = A + 1/2 B = 9.0 + 7.5/2 = 12.75% A : 친환경건축물, 지능형건축물, 에너지효율등급 인증관련 설계 추가요율 중 최상위값 = 9.0% B : 친환경건축물, 지능형건축물, 에너지효율등급 인증관련 설계 추가요율 중 차상위값 = 7.5%
B9: 3. 지열시험천공 | D9: : | E9: 20000000 | G9: 원 | H9: (견적가, VAT제외)
B10: 4. 지반조사 | D10: : | E10: 25200000 | G10: 원 | H10: (견적가, VAT제외)
B11: 5. 설계안전성검토 | D11: : | E11: 9000000 | G11: 원 | H11: (견적가, VAT제외)
B12: 6.에너지절약계획서 | D12: : | E12: 5000000 | G12: 원 | H12: (견적가, VAT제외)
B13: 7. BF 인증 | D13: : | E13: 9000000 | G13: 원 | H13: (견적가, VAT제외)
B14: 8. 성능위주설계 | D14: : | E14: 45000000 | G14: 원 | H14: (견적가, VAT제외)
B15: 9. 조감토 투시도 CG | D15: : | E15: 7000000 | G15: 원 | H15: (견적가, VAT제외)
B16: 10. 모형제작 | E16: 13000000 | G16: 원 | H16: (견적가, VAT제외)
B17: 11. 입찰안내서 작성 | D17: : | E17: 0 | G17: 원 | H17: (복합시설관 통합, 견적가, VAT제외)
B19: ※ 추가 업무비용 | I19: =K4+E12+E13+E14+E15+E16+E17+E9+E10+E11 -> 213621135 | J19: 원
I22: =SUM(E9:F17) -> 133200000
